[Event "*** Titled Tuesday Blitz"]
[Site "Chess.com"]
[Date "2018.12.04"]
[Round "5"]
[White "ckgchess"]
[Black "amiralfio"]
[Result "1-0"]
[WhiteElo "2587"]
[BlackElo "2416"]
[TimeControl "180+2"]
[EndTime "14:05:10 PST"]
[Termination "ckgchess won by resignation"]

1. e4 {[%clk 0:03:01.9]} 1... c5 {[%clk 0:02:59.5]} 2. Nf3 {[%clk 0:03:02.3]}
2... d6 {[%clk 0:02:59.7]} 3. d4 {[%clk 0:03:03.4]} 3... Nf6 {[%clk 0:02:58.5]}
4. Nc3 {[%clk 0:03:03.9]} 4... cxd4 {[%clk 0:02:59.6]} 5. Nxd4 {[%clk
0:03:05.8]} 5... a6 {[%clk 0:03:00.8]} 6. Bg5 {[%clk 0:03:06.6]} 6... Nbd7
{[%clk 0:03:00.8]} 7. Qe2 {[%clk 0:03:02.5]} 7... h6 {[%clk 0:02:57.4]} 8. Bh4
{[%clk 0:03:02.5]} 8... g6 {[%clk 0:02:58.6]} 9. f4 {[%clk 0:02:58.9]} 9... e5
{[%clk 0:02:59.1]} 10. fxe5 {[%clk 0:02:54.4]} 10... dxe5 {[%clk 0:03:01]} 11.
O-O-O {[%clk 0:02:56]} 11... Qc7 {[%clk 0:03:01.9]} 12. Nb3 {[%clk 0:02:56.5]}
12... b5 {[%clk 0:03:03]} 13. Nd5 {[%clk 0:02:57.5]} 13... Nxd5 {[%clk
0:03:04.1]} 14. exd5 {[%clk 0:02:59.4]} 14... Bd6 {[%clk 0:03:05.3]} 15. g4
{[%clk 0:03:00.7]} 15... Bb7 {[%clk 0:03:03.2]} 16. Bg2 {[%clk 0:03:00.8]} 16...
b4 {[%clk 0:02:51.4]} 17. Rhf1 {[%clk 0:02:38.2]} 17... O-O {[%clk 0:02:41.9]}
18. Nd2 {[%clk 0:02:32.4]} 18... a5 {[%clk 0:02:03.7]} 19. Ne4 {[%clk
0:02:29.7]} 19... Ba6 {[%clk 0:02:04.9]} 20. Qd2 {[%clk 0:02:19.3]} 20... Kg7
{[%clk 0:01:38]} 21. Rf6 {[%clk 0:02:01.7]} 21... Bc5 {[%clk 0:01:21.3]} 22. Rc6
{[%clk 0:01:52.6]} 22... Qa7 {[%clk 0:01:20.7]} 23. Nxc5 {[%clk 0:01:35.2]}
23... Nxc5 {[%clk 0:01:22.6]} 24. Bf2 {[%clk 0:01:35.2]} 24... Qb7 {[%clk
0:00:42.7]} 25. Bxc5 {[%clk 0:01:34.9]} 25... Rfc8 {[%clk 0:00:44.3]} 26. Qe3
{[%clk 0:01:31.4]} 26... Bb5 {[%clk 0:00:43.5]} 27. Qxe5+ {[%clk 0:01:26]} 27...
Kh7 {[%clk 0:00:43.2]} 28. Bd4 {[%clk 0:01:15.8]} 28... f6 {[%clk 0:00:43.7]}
29. Qxf6 {[%clk 0:01:08.2]} 29... Bxc6 {[%clk 0:00:43.7]} 30. dxc6 {[%clk
0:01:10.1]} 30... Qc7 {[%clk 0:00:38.9]} 31. Be4 {[%clk 0:01:08.4]} 31... Rg8
{[%clk 0:00:37.5]} 32. Be5 {[%clk 0:01:09.3]} 1-0

[Event "*** Titled Tuesday Blitz"]
[Site "Chess.com"]
[Date "2018.12.04"]
[Round "5"]
[White "TheMagician"]
[Black "kacprekt"]
[Result "0-1"]
[WhiteElo "2252"]
[BlackElo "2397"]
[TimeControl "180+2"]
[EndTime "14:05:14 PST"]
[Termination "kacprekt won on time"]

1. d4 {[%clk 0:03:01.9]} 1... f5 {[%clk 0:02:46.6]} 2. g3 {[%clk 0:03:00.7]}
2... Nf6 {[%clk 0:02:47.2]} 3. Bg2 {[%clk 0:03:01.9]} 3... g6 {[%clk 0:02:48.4]}
4. c4 {[%clk 0:02:58]} 4... Bg7 {[%clk 0:02:49]} 5. Nc3 {[%clk 0:02:58.9]} 5...
O-O {[%clk 0:02:49.3]} 6. e4 {[%clk 0:02:37.4]} 6... fxe4 {[%clk 0:02:44.9]} 7.
Nxe4 {[%clk 0:02:38.2]} 7... d6 {[%clk 0:02:43.6]} 8. Ne2 {[%clk 0:02:25.3]}
8... Nc6 {[%clk 0:02:30.1]} 9. N4c3 {[%clk 0:02:17]} 9... Bf5 {[%clk 0:01:47.5]}
10. O-O {[%clk 0:02:13.2]} 10... Qe8 {[%clk 0:01:42.6]} 11. b3 {[%clk
0:02:11.3]} 11... e5 {[%clk 0:01:38.7]} 12. dxe5 {[%clk 0:02:03.7]} 12... Nxe5
{[%clk 0:00:58.9]} 13. Nd4 {[%clk 0:01:59.3]} 13... Bg4 {[%clk 0:00:55.3]} 14.
f3 {[%clk 0:01:54.7]} 14... Bd7 {[%clk 0:00:54.5]} 15. f4 {[%clk 0:01:42.6]}
15... Nc6 {[%clk 0:00:46.1]} 16. Ndb5 {[%clk 0:01:31.5]} 16... Qc8 {[%clk
0:00:41.5]} 17. Nd5 {[%clk 0:00:47.5]} 17... Nxd5 {[%clk 0:00:41]} 18. Bxd5+
{[%clk 0:00:43.6]} 18... Kh8 {[%clk 0:00:40.8]} 19. Rb1 {[%clk 0:00:36]} 19...
Bf5 {[%clk 0:00:40.7]} 20. Rb2 {[%clk 0:00:30.1]} 20... a6 {[%clk 0:00:32.6]}
0-1

[Event "*** Titled Tuesday Blitz"]
[Site "Chess.com"]
[Date "2018.12.04"]
[Round "5"]
[White "LyonBeast"]
[Black "VladimirBelous"]
[Result "1-0"]
[WhiteElo "2928"]
[BlackElo "2756"]
[TimeControl "180+2"]
[EndTime "14:05:16 PST"]
[Termination "LyonBeast won by resignation"]

1. e4 {[%clk 0:03:01.9]} 1... c5 {[%clk 0:03:00.8]} 2. Nf3 {[%clk 0:02:59.1]}
2... Nc6 {[%clk 0:03:01.9]} 3. c3 {[%clk 0:02:55.2]} 3... Nf6 {[%clk 0:03:02.4]}
4. e5 {[%clk 0:02:52.7]} 4... Nd5 {[%clk 0:03:03]} 5. Bc4 {[%clk 0:02:54.4]}
5... Nb6 {[%clk 0:03:04.2]} 6. Bb3 {[%clk 0:02:55.5]} 6... c4 {[%clk 0:03:05.8]}
7. Bc2 {[%clk 0:02:56.6]} 7... d5 {[%clk 0:03:07.7]} 8. exd6 {[%clk 0:02:56.8]}
8... Qxd6 {[%clk 0:03:07.7]} 9. O-O {[%clk 0:02:57.8]} 9... Bg4 {[%clk
0:03:08.2]} 10. h3 {[%clk 0:02:52.2]} 10... Bh5 {[%clk 0:03:08.1]} 11. Re1
{[%clk 0:02:50.4]} 11... O-O-O {[%clk 0:03:00.2]} 12. b3 {[%clk 0:02:50.7]}
12... Ne5 {[%clk 0:02:32.9]} 13. Rxe5 {[%clk 0:02:50.4]} 13... Bxf3 {[%clk
0:02:29.3]} 14. Qe1 {[%clk 0:02:51.7]} 14... Bc6 {[%clk 0:02:25.7]} 15. Na3
{[%clk 0:02:51.9]} 15... f6 {[%clk 0:02:11.5]} 16. Ra5 {[%clk 0:02:49.6]} 16...
e5 {[%clk 0:01:52.1]} 17. bxc4 {[%clk 0:02:36.1]} 17... Kb8 {[%clk 0:01:51.7]}
18. Rb1 {[%clk 0:02:30.3]} 18... g5 {[%clk 0:01:40.4]} 19. Bf5 {[%clk
0:01:58.9]} 19... e4 {[%clk 0:01:27]} 20. Qe3 {[%clk 0:01:40]} 20... Qd3 {[%clk
0:01:19.7]} 21. Qxd3 {[%clk 0:01:32.1]} 21... exd3 {[%clk 0:01:21.6]} 22. c5
{[%clk 0:01:29.3]} 22... Nd5 {[%clk 0:01:22.5]} 23. Bxd3 {[%clk 0:01:12.7]}
23... Nxc3 {[%clk 0:01:20.2]} 24. dxc3 {[%clk 0:01:14.6]} 24... Rxd3 {[%clk
0:01:20.9]} 25. Be3 {[%clk 0:01:16.3]} 25... Be7 {[%clk 0:01:05.1]} 26. Nb5
{[%clk 0:01:11]} 26... Rhd8 {[%clk 0:01:01.7]} 27. Nd4 {[%clk 0:01:00.1]} 27...
Be4 {[%clk 0:00:50.6]} 28. c6 {[%clk 0:00:49.7]} 28... b6 {[%clk 0:00:49.3]} 29.
c7+ {[%clk 0:00:49.6]} 29... Kxc7 {[%clk 0:00:50.3]} 30. Rxa7+ {[%clk
0:00:50.9]} 30... Bb7 {[%clk 0:00:46.5]} 31. Ne6+ {[%clk 0:00:50.6]} 31... Kb8
{[%clk 0:00:47.9]} 32. Rxb7+ {[%clk 0:00:49.7]} 32... Kxb7 {[%clk 0:00:48.8]}
33. Rxb6+ {[%clk 0:00:51.3]} 33... Ka7 {[%clk 0:00:46.7]} 34. Nxd8 {[%clk
0:00:42.6]} 34... Rxe3 {[%clk 0:00:48.1]} 35. Rb7+ {[%clk 0:00:43.1]} 1-0

[Event "*** Titled Tuesday Blitz"]
[Site "Chess.com"]
[Date "2018.12.04"]
[Round "5"]
[White "DenisQ"]
[Black "Alexander_Donchenko"]
[Result "0-1"]
[WhiteElo "2600"]
[BlackElo "2687"]
[TimeControl "180+2"]
[EndTime "14:05:23 PST"]
[Termination "Alexander_Donchenko won by resignation"]

1. Nf3 {[%clk 0:03:01.9]} 1... Nf6 {[%clk 0:03:00.5]} 2. g3 {[%clk 0:03:02]}
2... b6 {[%clk 0:03:00.4]} 3. Bg2 {[%clk 0:03:03.9]} 3... Bb7 {[%clk 0:03:01.3]}
4. O-O {[%clk 0:03:05.4]} 4... g6 {[%clk 0:03:02.3]} 5. c4 {[%clk 0:03:06.5]}
5... Bg7 {[%clk 0:03:03.4]} 6. Nc3 {[%clk 0:03:07.6]} 6... O-O {[%clk
0:03:04.1]} 7. Re1 {[%clk 0:03:08.9]} 7... c5 {[%clk 0:03:03.3]} 8. b3 {[%clk
0:03:05]} 8... d5 {[%clk 0:02:53.7]} 9. cxd5 {[%clk 0:03:05.4]} 9... Nxd5 {[%clk
0:02:53.7]} 10. Bb2 {[%clk 0:03:06.2]} 10... Nc6 {[%clk 0:02:54.2]} 11. Qc1
{[%clk 0:03:06]} 11... Nc7 {[%clk 0:02:54]} 12. Rd1 {[%clk 0:02:45.6]} 12... Qd7
{[%clk 0:02:51.4]} 13. d3 {[%clk 0:02:41]} 13... e5 {[%clk 0:02:46.6]} 14. Ne4
{[%clk 0:02:37.8]} 14... Rad8 {[%clk 0:02:41.7]} 15. a3 {[%clk 0:02:38]} 15...
a5 {[%clk 0:02:39.6]} 16. Ned2 {[%clk 0:02:32.6]} 16... Qe7 {[%clk 0:02:26.3]}
17. Nc4 {[%clk 0:02:31.8]} 17... b5 {[%clk 0:02:26.2]} 18. Ncd2 {[%clk
0:02:26.5]} 18... Ne6 {[%clk 0:02:18]} 19. Qb1 {[%clk 0:02:12.1]} 19... Rfe8
{[%clk 0:02:08.9]} 20. Rc1 {[%clk 0:01:57.7]} 20... Bh6 {[%clk 0:01:58.2]} 21.
Rc2 {[%clk 0:01:55.1]} 21... f6 {[%clk 0:01:42.9]} 22. Ne4 {[%clk 0:01:49]}
22... f5 {[%clk 0:01:36.9]} 23. Ned2 {[%clk 0:01:43.8]} 23... Bxd2 {[%clk
0:01:35.3]} 24. Rxd2 {[%clk 0:01:38.9]} 24... Ncd4 {[%clk 0:01:22.2]} 25. Bxd4
{[%clk 0:01:28.3]} 25... Nxd4 {[%clk 0:01:06.4]} 26. Nxd4 {[%clk 0:01:28]} 26...
cxd4 {[%clk 0:01:04]} 27. Bxb7 {[%clk 0:01:27.1]} 27... Qxb7 {[%clk 0:01:05.9]}
28. Rc2 {[%clk 0:01:25]} 28... Rc8 {[%clk 0:01:04.2]} 29. Raa2 {[%clk
0:01:24.6]} 29... Rc3 {[%clk 0:00:59.7]} 30. b4 {[%clk 0:01:19.7]} 30... a4
{[%clk 0:01:01]} 31. Rxc3 {[%clk 0:01:12.8]} 31... dxc3 {[%clk 0:01:02.9]} 32.
Rc2 {[%clk 0:01:14.1]} 32... Rc8 {[%clk 0:01:04.1]} 33. Qa2+ {[%clk 0:01:12.7]}
33... Qf7 {[%clk 0:01:03.7]} 34. Qxf7+ {[%clk 0:01:12.4]} 34... Kxf7 {[%clk
0:01:05.6]} 35. f4 {[%clk 0:01:11.8]} 35... e4 {[%clk 0:01:04.5]} 0-1

[Event "*** Titled Tuesday Blitz"]
[Site "Chess.com"]
[Date "2018.12.04"]
[Round "5"]
[White "OparinGrigoriy"]
[Black "Durarbayli"]
[Result "1-0"]
[WhiteElo "2953"]
[BlackElo "2711"]
[TimeControl "180+2"]
[EndTime "14:05:42 PST"]
[Termination "OparinGrigoriy won on time"]

1. c4 {[%clk 0:03:01.9]} 1... c5 {[%clk 0:03:00.5]} 2. Nf3 {[%clk 0:03:02.9]}
2... Nc6 {[%clk 0:03:02.1]} 3. d4 {[%clk 0:03:04.6]} 3... cxd4 {[%clk 0:03:03]}
4. Nxd4 {[%clk 0:03:06.5]} 4... g6 {[%clk 0:03:01.6]} 5. Nc3 {[%clk 0:02:59.6]}
5... Bg7 {[%clk 0:03:02.1]} 6. e3 {[%clk 0:03:00.3]} 6... Nf6 {[%clk 0:03:02.5]}
7. Be2 {[%clk 0:03:00.8]} 7... O-O {[%clk 0:03:02.6]} 8. O-O {[%clk 0:03:02.4]}
8... Nxd4 {[%clk 0:03:00.5]} 9. exd4 {[%clk 0:03:02.4]} 9... d5 {[%clk
0:03:01.4]} 10. cxd5 {[%clk 0:02:52]} 10... Nxd5 {[%clk 0:03:01.9]} 11. Bf3
{[%clk 0:02:53.6]} 11... Be6 {[%clk 0:02:39.1]} 12. Re1 {[%clk 0:02:54.7]} 12...
Nxc3 {[%clk 0:02:22.1]} 13. bxc3 {[%clk 0:02:56.6]} 13... Rc8 {[%clk 0:02:23.1]}
14. Bg5 {[%clk 0:02:37.4]} 14... h6 {[%clk 0:02:00.3]} 15. Bd2 {[%clk 0:02:38]}
15... Rc7 {[%clk 0:01:36.8]} 16. h4 {[%clk 0:02:17.9]} 16... Bd5 {[%clk
0:01:27.8]} 17. h5 {[%clk 0:02:17]} 17... g5 {[%clk 0:01:24.7]} 18. a4 {[%clk
0:02:12.5]} 18... e6 {[%clk 0:01:15.6]} 19. Rb1 {[%clk 0:02:10.8]} 19... b6
{[%clk 0:01:04.6]} 20. Qe2 {[%clk 0:02:08.2]} 20... Qa8 {[%clk 0:00:54.3]} 21.
Bxd5 {[%clk 0:02:08.2]} 21... Qxd5 {[%clk 0:00:56.2]} 22. Rb5 {[%clk 0:02:02.3]}
22... Qa2 {[%clk 0:00:53.1]} 23. a5 {[%clk 0:01:37]} 23... bxa5 {[%clk
0:00:48.1]} 24. Qd3 {[%clk 0:01:36.3]} 24... a4 {[%clk 0:00:42.3]} 25. Reb1
{[%clk 0:01:30.5]} 25... a3 {[%clk 0:00:35.4]} 26. f4 {[%clk 0:01:29.2]} 26...
a6 {[%clk 0:00:20.8]} 27. R5b4 {[%clk 0:01:15.2]} 27... a5 {[%clk 0:00:18.8]}
28. Rb5 {[%clk 0:01:16.2]} 28... g4 {[%clk 0:00:10.6]} 29. Rxa5 {[%clk
0:01:16.8]} 29... Rfc8 {[%clk 0:00:09.1]} 30. Kh2 {[%clk 0:01:11]} 30... Bf8
{[%clk 0:00:06]} 31. Rbb5 {[%clk 0:00:56.3]} 31... Qa1 {[%clk 0:00:04.2]} 32.
Qe2 {[%clk 0:00:51.6]} 1-0

[Event "*** Titled Tuesday Blitz"]
[Site "Chess.com"]
[Date "2018.12.04"]
[Round "5"]
[White "Keaton87"]
[Black "cherryandmint"]
[Result "1-0"]
[WhiteElo "2535"]
[BlackElo "2691"]
[TimeControl "180+2"]
[EndTime "14:05:42 PST"]
[Termination "Keaton87 won by resignation"]

1. Nf3 {[%clk 0:03:01.9]} 1... d5 {[%clk 0:02:56.4]} 2. e3 {[%clk 0:03:02.6]}
2... Nf6 {[%clk 0:02:53.9]} 3. c4 {[%clk 0:03:03.6]} 3... e6 {[%clk 0:02:55]} 4.
b3 {[%clk 0:03:04.2]} 4... b6 {[%clk 0:02:56.1]} 5. Bb2 {[%clk 0:03:05]} 5...
Bb7 {[%clk 0:02:57.5]} 6. d4 {[%clk 0:03:03.9]} 6... Bd6 {[%clk 0:02:58.3]} 7.
Be2 {[%clk 0:02:58.5]} 7... Nbd7 {[%clk 0:02:58.7]} 8. O-O {[%clk 0:02:59.3]}
8... Ne4 {[%clk 0:02:57.6]} 9. Nbd2 {[%clk 0:02:56.8]} 9... f5 {[%clk
0:02:56.7]} 10. Ne5 {[%clk 0:02:53.9]} 10... O-O {[%clk 0:02:57.5]} 11. f3
{[%clk 0:02:50.2]} 11... Nxd2 {[%clk 0:02:54.1]} 12. Qxd2 {[%clk 0:02:52.1]}
12... Nxe5 {[%clk 0:02:53.7]} 13. dxe5 {[%clk 0:02:52.7]} 13... Bc5 {[%clk
0:02:54.9]} 14. b4 {[%clk 0:02:46.9]} 14... Be7 {[%clk 0:02:55.4]} 15. Rfd1
{[%clk 0:02:34.5]} 15... Qe8 {[%clk 0:02:42.1]} 16. Rac1 {[%clk 0:02:32.1]}
16... c5 {[%clk 0:02:21]} 17. cxd5 {[%clk 0:02:28.9]} 17... Bxd5 {[%clk
0:02:19.9]} 18. Bc4 {[%clk 0:02:18.4]} 18... Bxc4 {[%clk 0:02:18.4]} 19. Rxc4
{[%clk 0:02:20.3]} 19... Rd8 {[%clk 0:02:18.2]} 20. Qc2 {[%clk 0:02:16.2]} 20...
Rxd1+ {[%clk 0:01:53]} 21. Qxd1 {[%clk 0:02:18.1]} 21... Qb5 {[%clk 0:01:41.8]}
22. Qb3 {[%clk 0:02:09]} 22... Rd8 {[%clk 0:01:11.4]} 23. bxc5 {[%clk
0:01:32.3]} 23... Qxb3 {[%clk 0:01:01.6]} 24. axb3 {[%clk 0:01:33.9]} 24... Rd1+
{[%clk 0:01:02.3]} 25. Kf2 {[%clk 0:01:35.3]} 25... Rd2+ {[%clk 0:01:03.9]} 26.
Kg3 {[%clk 0:01:36.5]} 26... Rxb2 {[%clk 0:01:05.6]} 27. c6 {[%clk 0:01:36.9]}
27... Bd8 {[%clk 0:01:06.3]} 28. c7 {[%clk 0:01:37.8]} 28... Bxc7 {[%clk
0:01:07]} 29. Rxc7 {[%clk 0:01:39.7]} 29... Rxb3 {[%clk 0:01:04]} 30. Rxa7
{[%clk 0:01:40.3]} 30... Rxe3 {[%clk 0:01:02.3]} 31. Kf4 {[%clk 0:01:34.9]}
31... Re2 {[%clk 0:00:56.8]} 32. Re7 {[%clk 0:01:30.5]} 32... Rxg2 {[%clk
0:00:20.2]} 33. Rxe6 {[%clk 0:01:31.8]} 33... Rxh2 {[%clk 0:00:13.4]} 34. Rxb6
{[%clk 0:01:32.6]} 34... Rh5 {[%clk 0:00:13.4]} 35. e6 {[%clk 0:01:32.1]} 35...
Kf8 {[%clk 0:00:11.7]} 36. Rb7 {[%clk 0:01:32.4]} 36... h6 {[%clk 0:00:06.2]}
37. Rf7+ {[%clk 0:01:32.6]} 37... Ke8 {[%clk 0:00:03.4]} 38. Rxg7 {[%clk
0:01:33.8]} 38... Rh3 {[%clk 0:00:04.6]} 39. Ke5 {[%clk 0:01:34.7]} 39... Rxf3
{[%clk 0:00:03.1]} 40. Kf6 {[%clk 0:01:36]} 40... Kd8 {[%clk 0:00:04.5]} 41.
Rg8+ {[%clk 0:01:35.2]} 41... Kc7 {[%clk 0:00:05.7]} 42. e7 {[%clk 0:01:36.8]}
42... Re3 {[%clk 0:00:07.2]} 43. e8=Q {[%clk 0:01:37.6]} 43... Rxe8 {[%clk
0:00:08.8]} 44. Rxe8 {[%clk 0:01:39.2]} 44... f4 {[%clk 0:00:10.7]} 45. Re4
{[%clk 0:01:39.4]} 45... f3 {[%clk 0:00:12.2]} 46. Rf4 {[%clk 0:01:40.7]} 46...
f2 {[%clk 0:00:13.7]} 47. Rxf2 {[%clk 0:01:41.9]} 1-0

[Event "*** Titled Tuesday Blitz"]
[Site "Chess.com"]
[Date "2018.12.04"]
[Round "5"]
[White "MatyChess1"]
[Black "Shahinyan_ChessMood"]
[Result "0-1"]
[WhiteElo "2530"]
[BlackElo "2666"]
[TimeControl "180+2"]
[EndTime "14:05:43 PST"]
[Termination "Shahinyan_ChessMood won by checkmate"]

1. e4 {[%clk 0:03:01.9]} 1... e6 {[%clk 0:03:00.5]} 2. Qe2 {[%clk 0:02:51.8]}
2... d5 {[%clk 0:03:02.4]} 3. exd5 {[%clk 0:02:52.4]} 3... Qxd5 {[%clk
0:03:03.2]} 4. Nc3 {[%clk 0:02:53.5]} 4... Qa5 {[%clk 0:03:02.7]} 5. g3 {[%clk
0:02:52.9]} 5... Bd7 {[%clk 0:02:56.6]} 6. Bg2 {[%clk 0:02:47.4]} 6... Bc6
{[%clk 0:02:57.6]} 7. Nf3 {[%clk 0:02:49.3]} 7... Nd7 {[%clk 0:02:57.6]} 8. O-O
{[%clk 0:02:50.6]} 8... Ngf6 {[%clk 0:02:58.4]} 9. a3 {[%clk 0:02:49.5]} 9...
Qh5 {[%clk 0:02:54.5]} 10. b4 {[%clk 0:02:44.2]} 10... a6 {[%clk 0:02:25]} 11.
d3 {[%clk 0:01:23.9]} 11... Bd6 {[%clk 0:02:13.9]} 12. Bd2 {[%clk 0:01:24]}
12... O-O {[%clk 0:02:07.2]} 13. Rfe1 {[%clk 0:01:23.6]} 13... Rae8 {[%clk
0:01:53.2]} 14. h3 {[%clk 0:01:20]} 14... e5 {[%clk 0:01:46.6]} 15. g4 {[%clk
0:01:11.3]} 15... Nxg4 {[%clk 0:01:36.9]} 16. hxg4 {[%clk 0:01:13.2]} 16... Qxg4
{[%clk 0:01:38.8]} 17. Red1 {[%clk 0:00:12.6]} 17... f5 {[%clk 0:01:21.4]} 18.
Ne1 {[%clk 0:00:13.3]} 18... Qg6 {[%clk 0:01:22.5]} 19. Kf1 {[%clk 0:00:06.7]}
19... e4 {[%clk 0:01:20.7]} 20. d4 {[%clk 0:00:04.8]} 20... f4 {[%clk
0:01:19.2]} 21. d5 {[%clk 0:00:06.2]} 21... f3 {[%clk 0:01:20.2]} 22. Qc4 {[%clk
0:00:05.6]} 22... Ne5 {[%clk 0:00:43.3]} 23. Qxe4 {[%clk 0:00:06.3]} 23... fxg2+
{[%clk 0:00:44.2]} 24. Qxg2 {[%clk 0:00:04.9]} 24... Ng4 {[%clk 0:00:39.5]} 25.
dxc6 {[%clk 0:00:04.2]} 25... Rxf2+ {[%clk 0:00:37.7]} 26. Qxf2 {[%clk
0:00:04.8]} 26... Nxf2 {[%clk 0:00:39.6]} 27. Kxf2 {[%clk 0:00:06.3]} 27... Qg3+
{[%clk 0:00:39.5]} 28. Kf1 {[%clk 0:00:06.7]} 28... Rf8+ {[%clk 0:00:40.5]} 29.
Ke2 {[%clk 0:00:08.1]} 29... Rf2# {[%clk 0:00:40.9]} 0-1

[Event "*** Titled Tuesday Blitz"]
[Site "Chess.com"]
[Date "2018.12.04"]
[Round "5"]
[White "AsaHoffmann"]
[Black "ajkom197"]
[Result "1-0"]
[WhiteElo "2177"]
[BlackElo "2381"]
[TimeControl "180+2"]
[EndTime "14:05:45 PST"]
[Termination "AsaHoffmann won on time"]

1. d4 {[%clk 0:03:01.5]} 1... e6 {[%clk 0:03:00.2]} 2. e4 {[%clk 0:02:58.3]}
2... d5 {[%clk 0:02:59.6]} 3. e5 {[%clk 0:02:59.1]} 3... c5 {[%clk 0:02:58.8]}
4. Nf3 {[%clk 0:02:59.6]} 4... Nc6 {[%clk 0:02:56.5]} 5. Bd3 {[%clk 0:02:59.5]}
5... a6 {[%clk 0:02:56.8]} 6. O-O {[%clk 0:02:58.7]} 6... b5 {[%clk 0:02:53.1]}
7. c3 {[%clk 0:02:55.5]} 7... Bb7 {[%clk 0:02:40.1]} 8. Be3 {[%clk 0:02:54.4]}
8... cxd4 {[%clk 0:02:36.3]} 9. cxd4 {[%clk 0:02:54.5]} 9... Nge7 {[%clk
0:02:38.2]} 10. a3 {[%clk 0:02:52.9]} 10... Nc8 {[%clk 0:02:37.5]} 11. Nbd2
{[%clk 0:02:52.3]} 11... Nb6 {[%clk 0:02:37.9]} 12. b3 {[%clk 0:02:51.9]} 12...
Be7 {[%clk 0:02:37.2]} 13. g3 {[%clk 0:02:50.3]} 13... O-O {[%clk 0:02:38]} 14.
h4 {[%clk 0:02:50.9]} 14... f5 {[%clk 0:02:38.7]} 15. exf6 {[%clk 0:02:48.4]}
15... Bxf6 {[%clk 0:02:40.1]} 16. Re1 {[%clk 0:02:40.8]} 16... e5 {[%clk
0:02:27.7]} 17. dxe5 {[%clk 0:02:36.7]} 17... Nxe5 {[%clk 0:02:23.8]} 18. Nxe5
{[%clk 0:02:36.9]} 18... Bxe5 {[%clk 0:02:20.6]} 19. Nf3 {[%clk 0:02:30.2]}
19... Bxa1 {[%clk 0:01:44.4]} 20. Ng5 {[%clk 0:02:22.9]} 20... h6 {[%clk
0:01:17.7]} 21. Ne6 {[%clk 0:02:17.9]} 21... Qd6 {[%clk 0:01:08.8]} 22. Nxf8
{[%clk 0:02:17.2]} 22... Rxf8 {[%clk 0:00:35]} 23. Qxa1 {[%clk 0:02:12.6]} 23...
Nd7 {[%clk 0:00:34.1]} 24. Qd4 {[%clk 0:02:05.8]} 24... Ne5 {[%clk 0:00:31.8]}
25. Be2 {[%clk 0:02:06.2]} 25... Nc6 {[%clk 0:00:27.2]} 26. Qb6 {[%clk
0:01:54.1]} 26... d4 {[%clk 0:00:23.1]} 27. Bf4 {[%clk 0:01:41.7]} 27... Rxf4
{[%clk 0:00:20.2]} 28. gxf4 {[%clk 0:01:41.9]} 28... Bc8 {[%clk 0:00:17.9]} 29.
Bf3 {[%clk 0:01:38.1]} 29... Qg6+ {[%clk 0:00:18.4]} 30. Kh2 {[%clk 0:01:34.7]}
30... Bd7 {[%clk 0:00:17.7]} 31. Qc5 {[%clk 0:01:22.6]} 31... Qf6 {[%clk
0:00:14.6]} 32. Qd5+ {[%clk 0:01:13]} 32... Kh8 {[%clk 0:00:04.7]} 33. Qxd7
{[%clk 0:01:09.3]} 33... Qxf4+ {[%clk 0:00:05.8]} 34. Kg2 {[%clk 0:01:09]} 34...
Ne5 {[%clk 0:00:02.5]} 35. Rxe5 {[%clk 0:01:07.8]} 35... Qxe5 {[%clk 0:00:02.7]}
36. Qd5 {[%clk 0:01:04.7]} 1-0

[Event "*** Titled Tuesday Blitz"]
[Site "Chess.com"]
[Date "2018.12.04"]
[Round "5"]
[White "Hikaru"]
[Black "Alopekos"]
[Result "1-0"]
[WhiteElo "3029"]
[BlackElo "2496"]
[TimeControl "180+2"]
[EndTime "14:05:53 PST"]
[Termination "Hikaru won on time"]

1. d4 {[%clk 0:03:01.9]} 1... Nf6 {[%clk 0:03:00.8]} 2. Nf3 {[%clk 0:03:03.8]}
2... e6 {[%clk 0:03:02]} 3. Bf4 {[%clk 0:03:04.9]} 3... Be7 {[%clk 0:03:00.7]}
4. e3 {[%clk 0:03:01.3]} 4... O-O {[%clk 0:03:02]} 5. Nbd2 {[%clk 0:03:02.6]}
5... c5 {[%clk 0:03:01.8]} 6. Bd3 {[%clk 0:03:03.6]} 6... b6 {[%clk 0:03:02.5]}
7. c3 {[%clk 0:03:03.9]} 7... Bb7 {[%clk 0:03:03.8]} 8. O-O {[%clk 0:03:04.8]}
8... d6 {[%clk 0:03:05.1]} 9. e4 {[%clk 0:03:03.7]} 9... Nc6 {[%clk 0:03:01.2]}
10. Re1 {[%clk 0:02:55.9]} 10... cxd4 {[%clk 0:03:01.6]} 11. cxd4 {[%clk
0:02:47.3]} 11... e5 {[%clk 0:02:55.4]} 12. Be3 {[%clk 0:02:48.6]} 12... Ng4
{[%clk 0:02:16.2]} 13. d5 {[%clk 0:02:43.9]} 13... Nxe3 {[%clk 0:02:12.6]} 14.
Rxe3 {[%clk 0:02:44.8]} 14... Nb8 {[%clk 0:01:41.7]} 15. Rc1 {[%clk 0:02:34.5]}
15... Ba6 {[%clk 0:01:39.1]} 16. b4 {[%clk 0:02:32.6]} 16... Bxd3 {[%clk
0:01:36.8]} 17. Rxd3 {[%clk 0:02:33.8]} 17... a5 {[%clk 0:01:32.5]} 18. a3
{[%clk 0:02:34.9]} 18... axb4 {[%clk 0:01:32.9]} 19. axb4 {[%clk 0:02:34.2]}
19... Qd7 {[%clk 0:01:29.2]} 20. Rdc3 {[%clk 0:02:28.1]} 20... Na6 {[%clk
0:01:22.6]} 21. Qb3 {[%clk 0:02:18.4]} 21... Qb5 {[%clk 0:01:20.2]} 22. Rc4
{[%clk 0:02:19.2]} 22... f5 {[%clk 0:01:03.6]} 23. Nxe5 {[%clk 0:02:08.5]} 23...
fxe4 {[%clk 0:00:35.4]} 24. Nxe4 {[%clk 0:01:54.8]} 24... Qxd5 {[%clk
0:00:29.6]} 25. Nc6 {[%clk 0:01:56.1]} 25... Bh4 {[%clk 0:00:15.5]} 26. Rd1
{[%clk 0:01:50]} 26... Qf7 {[%clk 0:00:13.7]} 27. Rc3 {[%clk 0:01:29.5]} 27...
Qxb3 {[%clk 0:00:04.3]} 28. Rxb3 {[%clk 0:01:31.4]} 28... Rae8 {[%clk
0:00:03.2]} 29. f3 {[%clk 0:01:30.6]} 29... Nc7 {[%clk 0:00:02.8]} 30. g3 {[%clk
0:01:28.9]} 30... Be7 {[%clk 0:00:02.2]} 31. Nxe7+ {[%clk 0:01:29.2]} 31... Rxe7
{[%clk 0:00:04.1]} 32. Rxd6 {[%clk 0:01:30.6]} 32... b5 {[%clk 0:00:04.7]} 33.
Rc3 {[%clk 0:01:30.2]} 33... Ne6 {[%clk 0:00:05.4]} 34. Kg2 {[%clk 0:01:31]}
34... Ra8 {[%clk 0:00:04]} 35. Rc2 {[%clk 0:01:30.8]} 35... h6 {[%clk
0:00:04.2]} 36. Rd5 {[%clk 0:01:31.8]} 36... Nc7 {[%clk 0:00:03.6]} 37. Rdc5
{[%clk 0:01:32.2]} 37... Ra7 {[%clk 0:00:05.2]} 38. h4 {[%clk 0:01:32.7]} 38...
Kh7 {[%clk 0:00:04]} 39. h5 {[%clk 0:01:33.9]} 39... Ne6 {[%clk 0:00:04.4]} 40.
Rd5 {[%clk 0:01:35.3]} 40... Nc7 {[%clk 0:00:04.6]} 41. Rd8 {[%clk 0:01:34.5]}
41... Ne6 {[%clk 0:00:05.5]} 42. Rb8 {[%clk 0:01:35.7]} 42... Rad7 {[%clk
0:00:02.8]} 43. Rcc8 {[%clk 0:01:35.5]} 1-0